Cogmind - Beta 12 @@@ ROGUE MODE // 2023.05.04 @ 21:15:24 Player: alice_fexa Result: Self-destructed Performance ------------- Evolutions (9) 4500 Regions Visited (22) 4400 Robots Destroyed (302) 1510 Value Destroyed (13804) 13804 Prototype IDs (70) 1400 Alien Tech Used (1) 200 Bonus (6255) 6255 TOTAL SCORE: 32069 Bonus ------- High Alert Combat Kills 2973 Follower Combat Kills 419 Aligned with FarCom 300 Met Warlord at Base 500 MAIN.C Attacked Warlord 500 Warlord Defense Kills 146 Met Warlord at Research 2000 Friendly Fire -583 Cogmind --------- Core Integrity 1302/1600 Matter 292/300 Energy 597/597 System Corruption 3% Temperature Cool (0) Movement Walking (116) Location -1/Command Parts ------- > --- POWER (2) -------- Particle-Quantum Reactor > --- PROPULSION (6) --- Myomer-ITA Exoskeleton > --- UTILITY (13) ----- Armored Scrap Engine Advanced Heat Sink Advanced Coolant Injector High-capacity Storage Unit Experimental Optical Array Experimental Targeting Computer Experimental Targeting Computer Experimental Core Analyzer Advanced Kinecellerator Advanced Weapon Cycler Centrium Heavy Armor Plating > --- WEAPON (4) ------- Hpw. Kinetic Rail Construct/G Hpw. Charged Rail Construct/G > --- INVENTORY (20) --- Advanced Heat Sink Advanced Heat Sink Advanced Heat Sink Advanced Heat Sink Advanced Energy Well (500) Matter Compressor (250) Improved Matter Compressor (300) Matter Filter Precision Energy Filter Advanced Transmission Jammer Heavy Armor Plating Centrium Heavy Armor Plating Graphene Brace Advanced Remote Shield Long-range Tractor Beam Transdimensional Reconstructor Advanced EMP Blaster Micro-nuke Launcher Peak State ------------ > --- POWER ------------ Particle-Quantum Reactor > --- PROPULSION ------- Myomer-ITA Exoskeleton > --- UTILITY ---------- Armored Scrap Engine Advanced Cooling System Advanced Coolant Injector High-capacity Storage Unit Machine Analyzer Experimental Optical Array Experimental Targeting Computer Experimental Targeting Computer Experimental Core Analyzer Advanced Kinecellerator Centrium Heavy Armor Plating > --- WEAPON ----------- Hpw. Kinetic Rail Construct/G Hyp. Ballistic Rail Construct/C Hpw. Charged Rail Construct/G > --- INVENTORY -------- Advanced Energy Well Matter Compressor Improved Matter Compressor Precision Energy Filter Advanced Weapon Cycler Advanced Transmission Jammer Centrium Heavy Armor Plating Centrium Heavy Armor Plating Graphene Brace Advanced Remote Shield System Purifier Long-range Tractor Beam Transdimensional Reconstructor Advanced EMP Blaster Micro-nuke Launcher [Rating: 205] Favorites ----------- Power Constructs Engine Light Ion Engine Power Core Light Nuclear Core Reactor Constructs Propulsion Constructs Treads Light Treads Leg Constructs Wheel Armored Huge Wheel Utility High-capacity Storage Unit Device Armored Scrap Engine Storage High-capacity Storage Unit Processor Machine Analyzer Protection Centrium Heavy Armor Plating Weapon Constructs Energy Gun Constructs Energy Cannon Guided Plasma Cannon Ballistic Gun Constructs Ballistic Cannon Constructs Launcher Advanced EMP Blaster Slashing Weapon Mining Claw Build | -11 -10 -10 -10 -9 -8 -7 -7 -7 -5 -5 -5 -5 -4 -4 -4 -4 -4 -3 -3 -2 -1 -1 ------- Run | Jun Mat Min Exi Min Mat Fac Sto Rec Fac Upp Upp Zhi Pro Fac Upp Upp War Pro Res Res Acc Com Slots Evolved 18 | . . . . . 4 2 . . 4 . . . . 2 . . . . 2 2 2 . Power 1 | . . . . . . . . . 1 . . . . . . . . . . . . . Propulsion 4 | . . . . . 1 . . . 1 . . . . 1 . . . . . 1 . . Utility 11 | . . . . . 3 1 . . 2 . . . . 1 . . . . 1 1 2 . Weapon 2 | . . . . . . 1 . . . . . . . . . . . . 1 . . . Parts Attached 215 | 6 7 3 . 2 23 17 21 6 23 7 2 6 2 22 1 2 8 1 15 16 13 12 Power 12 | 1 3 . . 1 2 4 1 . . . . . . . . . . . . . . . Engine 8 | 1 3 . . . . 3 1 . . . . . . . . . . . . . . . Core 4 | . . . . 1 2 1 . . . . . . . . . . . . . . . . Reactor . | . . . . . . . . . . . . . . . . . . . . . . . Propulsion 13 | 2 1 2 . . 3 . 4 1 . . . . . . . . . . . . . . Treads 8 | 2 . 2 . . 1 . 3 . . . . . . . . . . . . . . . Leg . | . . . . . . . . . . . . . . . . . . . . . . . Wheel 5 | . 1 . . . 2 . 1 1 . . . . . . . . . . . . . . Hover . | . . . . . . . . . . . . . . . . . . . . . . . Flight . | . . . . . . . . . . . . . . . . . . . . . . . Utility 123 | 1 3 . . . 5 6 4 5 14 6 1 6 2 17 . 1 3 . 13 15 11 10 Device 75 | . . . . . 3 2 1 3 6 6 1 3 1 12 . 1 3 . 10 5 9 9 Storage 6 | 1 2 . . . . . . . . . . 1 . 1 . . . . . 1 . . Processor 11 | . 1 . . . 1 2 . . 1 . . . . 1 . . . . . 5 . . Hackware . | . . . . . . . . . . . . . . . . . . . . . . . Protection 31 | . . . . . 1 2 3 2 7 . . 2 1 3 . . . . 3 4 2 1 Artifact . | . . . . . . . . . . . . . . . . . . . . . . . Weapon 67 | 2 . 1 . 1 13 7 12 . 9 1 1 . . 5 1 1 5 1 2 1 2 2 Energy Gun 26 | . . 1 . . 8 4 2 . 2 . . . . 3 . 1 4 . 1 . . . Energy Cannon 11 | . . . . . 2 2 . . 2 . 1 . . 1 1 . . . 1 1 . . Ballistic Gun 11 | 2 . . . 1 1 1 3 . 2 . . . . . . . . . . . . 1 Ballistic Cannon 1 | . . . . . . . 1 . . . . . . . . . . . . . . . Launcher 17 | . . . . . 1 . 6 . 3 1 . . . 1 . . 1 1 . . 2 1 Special Weapon . | . . . . . . . . . . . . . . . . . . . . . . . Impact Weapon . | . . . . . . . . . . . . . . . . . . . . . . . Slashing Weapon 1 | . . . . . 1 . . . . . . . . . . . . . . . . . Piercing Weapon . | . . . . . . . . . . . . . . . . . . . . . . . Special Melee Weapon . | . . . . . . . . . . . . . . . . . . . . . . . Unidentified Prototypes 22 | . . . . . 4 1 3 . 1 . . 3 . 1 . . 3 . 2 4 . . Parts Lost 17 | . . 3 . . . . 2 . 2 1 1 . . 3 . . . . . . 1 4 Power . | . . . . . . . . . . . . . . . . . . . . . . . Propulsion 5 | . . 2 . . . . 1 . 1 . . . . 1 . . . . . . . . Utility 5 | . . . . . . . . . 1 1 . . . 1 . . . . . . . 2 Weapon 7 | . . 1 . . . . 1 . . . 1 . . 1 . . . . . . 1 2 Highest Loss Streak 3 | . . 2 . . . . 1 . 2 1 1 . . 3 . . . . . . 1 1 To Critical Strikes 1 | . . . . . . . 1 . . . . . . . . . . . . . . . Average Slot Usage (%) 74 | . 99 100 100 100 89 92 92 81 71 67 69 69 70 67 68 68 67 68 65 63 63 62 Engine 2 | . 14 14 14 1 . 2 7 3 1 5 5 5 5 . . . . . . . . . Core 2 | . . . . 12 9 4 . 3 3 . . . . 1 5 5 5 5 . . . . Reactor 1 | . . . . . . . . . . . . . . 3 . . . . 3 4 4 4 Treads 3 | . 22 14 14 14 9 7 7 6 . . . . . . 5 1 . . . . . . Wheel 2 | . 5 14 14 14 9 7 7 7 1 . . . . . . . . . . . 1 . Hover 1 | . . . . . . . . . 1 . . . . 4 . 3 . . 2 1 . 2 Device 12 | . . . . . 17 15 15 7 11 14 16 12 11 16 15 17 20 21 14 9 16 18 Storage 6 | . 14 14 14 14 9 7 7 7 5 5 5 5 5 5 5 5 5 5 4 4 4 4 Processor 16 | . 13 14 14 14 9 15 15 15 17 17 17 17 17 15 15 15 15 15 14 20 20 17 Protection 4 | . . . . . 8 7 7 6 4 . . 3 5 4 5 3 . . 3 3 4 4 Energy Gun 8 | . . 5 14 14 13 14 14 13 7 3 . . . 11 5 11 12 5 7 5 2 5 Energy Cannon 1 | . . . . . . . . . . . 3 5 5 1 3 2 . . 1 3 2 . Ballistic Gun 5 | . 28 22 14 14 4 7 3 3 5 11 11 11 11 . 5 . 1 5 4 2 . 1 Ballistic Cannon 1 | . . . . . . . 2 4 1 . . . . 1 1 . . . 2 2 5 1 Naked Turns . | . . . . . . . . . . . . . . . . . . . . . . . Heaviest Build 142 | 10 45 47 47 51 65 72 69 70 83 71 75 81 81 82 81 81 73 76 114 117 142 142 Greatest Support 268 | 40 40 16 16 16 28 28 28 28 79 78 78 78 78 129 129 129 123 123 145 180 268 186 Greatest Overweight (x) 4 | 3 2 2 2 3 3 2 2 4 4 . . 1 1 1 . 1 . . . 1 1 . Average Overweight (x) . | . 1 2 2 2 1 2 2 3 1 . . . 1 . . . . . . . . . Largest Inventory Capacity 25 | 8 20 20 20 20 20 20 20 20 20 20 20 20 20 25 20 20 20 20 20 20 20 20 Average Capacity 19 | 7 17 20 20 20 20 20 20 20 20 20 20 20 20 20 20 20 20 20 20 20 20 20 Most Carried 20 | 3 19 20 20 20 20 20 20 20 20 19 18 20 20 20 20 20 20 20 20 20 19 20 Average Carried 18 | 2 13 19 19 19 19 19 19 16 19 17 16 19 20 19 20 20 19 20 19 19 17 16 Final Capacity 20 | 8 20 20 20 20 20 20 20 20 20 20 20 20 20 20 20 20 20 20 20 20 20 20 Final Carried 20 | 3 19 19 20 20 20 20 20 17 19 17 18 20 20 20 20 20 20 20 20 20 17 20 Scrap Engine Consumption 400 | . . . . . . . . 29 77 1 4 6 3 51 5 1 30 . 12 114 42 25 Constructs Created 7 | . . . . . . . . 4 . . . . . 1 . . . . 1 . 1 . Constructs Modified 174 | . . . . . . . . 6 32 2 . . . 26 1 4 8 . 7 60 19 9 Class Distribution -------------------- 50% | Construct 16% | Scavenger-Construct 16% | Mutant 7% | Skirmisher 5% | Commander-Construct Dominant Class ---------------- Mutant | -10/Materials Mutant | -10/Mines Mutant | -10/Exiles Mutant | -9/Mines Mutant | -8/Materials Skirmisher | -7/Factory Scavenger-Skirmisher | -7/Storage Commander-Construct | -7/Recycling Construct | -5/Factory Construct | -5/Upper Caves Construct | -5/Upper Caves Construct | -5/Zhirov Construct | -4/Proximity Caves Construct | -4/Factory Construct | -4/Upper Caves Construct | -4/Upper Caves Construct | -4/Warlord Construct | -3/Proximity Caves Construct | -3/Research Construct | -2/Research Scavenger-Construct | -1/Access Scavenger-Construct | -1/Command Resources | -11 -10 -10 -10 -9 -8 -7 -7 -7 -5 -5 -5 -5 -4 -4 -4 -4 -4 -3 -3 -2 -1 -1 ----------- Run | Jun Mat Min Exi Min Mat Fac Sto Rec Fac Upp Upp Zhi Pro Fac Upp Upp War Pro Res Res Acc Com Matter Collected 6090 | 225 201 50 . 27 303 378 393 194 1071 229 169 370 20 351 17 32 120 46 192 229 856 617 Remotely 478 | . . . . . . . 243 48 . 187 . . . . . . . . . . . . Salvage Created 16321 | . 508 156 . 88 747 795 772 412 2946 206 192 486 . 1386 141 . 68 64 372 862 3704 2416 Parts 822 | . 36 7 . 6 47 54 38 15 151 6 11 3 . 66 7 . 4 6 20 25 191 129 Haulers Intercepted 11 | . 1 . . . 1 . 1 . 4 . . . . 1 . . . . . 1 2 . Recyclers Shooed 13 | . . . . . 1 . 1 4 3 . . . . 1 . . . . 2 1 . . Parts Field Recycled . | . . . . . . . . . . . . . . . . . . . . . . . Retrieved Matter . | . . . . . . . . . . . . . . . . . . . . . . . Parts Self-Destructed 26 | . . . . . . . . . . 1 13 1 . . 5 2 . 4 . . . . Prevented 2 | . . . . . . . . . . . 2 . . . . . . . . . . . Kills | -11 -10 -10 -10 -9 -8 -7 -7 -7 -5 -5 -5 -5 -4 -4 -4 -4 -4 -3 -3 -2 -1 -1 ------- Run | Jun Mat Min Exi Min Mat Fac Sto Rec Fac Upp Upp Zhi Pro Fac Upp Upp War Pro Res Res Acc Com Combat Hostiles Destroyed 211 | . 14 4 . 2 11 15 19 2 34 5 3 . . 14 2 . 1 5 1 8 41 30 Guns 97 | . 14 4 . 2 8 15 8 2 19 . 2 . . 6 . . 1 2 1 . . 13 Cannons 65 | . . . . . . . . . 6 . 1 . . 1 2 . . . . 7 36 12 AOE 35 | . . . . . 3 . 11 . 6 5 . . . 3 . . . 3 . . 3 1 Classes Destroyed 23 | . 4 . . . 5 2 1 . 2 . . . . 2 . . . 1 . 4 2 . Worker 14 | . . . . . 1 1 . . 6 . . . . 3 . . . . . . 3 . Builder 18 | . . . . . 1 2 . . 8 . . . . 1 . . . . 2 . 4 . Tunneler 3 | . . . . . . . . . . . . . . 3 . . . . . . . . Hauler 11 | . 1 . . . 1 . 1 . 4 . . . . 1 . . . . . 1 2 . Recycler 16 | . . . . . 2 . 1 6 . . . . . 2 . . . . 1 1 3 . Mechanic 5 | . . . . . 1 . . . . . . . . . . . . . . . 2 2 Operator 1 | . . . . . . . . . 1 . . . . . . . . . . . . . Drone 2 | . . . . . . . . . . . . . . . . . . 2 . . . . Watcher 24 | . 2 . . . 2 2 . . 5 . . . . 1 . . . . 3 2 3 4 Swarmer 27 | . 6 . . . 3 3 4 1 2 5 . . . . . . . 3 . . . . Cutter 3 | . . . . . . . . . . . . . . 3 . . . . . . . . Saboteur 1 | . . . . . . . . . . . . . . . . . . . . . 1 . Grunt 67 | . 8 4 . 2 3 2 9 1 18 . . . . . . . 1 . . . 9 10 Brawler 4 | . . . . . . . 2 . . . . . . . . . . . . . 1 1 Duelist 2 | . . . . . . . . . . . . . . . . . . . . . 2 . Protector 5 | . . . . . . . . . 2 . . . . . . . . . . . 1 2 Sentry 22 | . . . . . 5 2 3 . 1 . 1 . . 4 1 . . . . . 2 3 Demolisher 1 | . . . . . . . . . . . . . . . . . . . . 1 . . Hunter 14 | . . . . . . 3 . . 5 . . . . . . . . . 1 1 2 2 Programmer 59 | . . . . . . 5 1 . 7 . 2 . . 7 1 . . . . 1 23 12 Striker 4 | . . . . . . . . . . . . . . . . . . . . 4 . . Executioner 1 | . . . . . . . . . . . . . . . . . . . . 1 . . Packrat 3 | . . . . . . . . . . 3 . . . . . . . . . . . . Mutant 1 | . . . . . . . . . . . . . . . . . . . . 1 . . Best Kill Streak 11 | . 3 2 . 1 3 5 11 3 9 5 2 . . 6 1 . 1 3 3 2 6 7 Combat Bots Only 11 | . 3 2 . 1 3 5 11 2 7 5 2 . . 6 1 . 1 3 1 1 5 6 Max Kills in Single Turn 5 | . 2 1 . 1 3 1 3 1 5 3 1 . . 3 1 . 1 2 1 2 2 2 Gunslinging 1 | . . . . . . . 1 . . . . . . . . . . . . . . . Exploded 3 | . . . . . 3 . 3 . 2 3 . . . 3 . . . 2 . . 1 1 Melee . | . . . . . . . . . . . . . . . . . . . . . . . Uniques/NPCs Destroyed . | . . . . . . . . . . . . . . . . . . . . . . . Combat | -11 -10 -10 -10 -9 -8 -7 -7 -7 -5 -5 -5 -5 -4 -4 -4 -4 -4 -3 -3 -2 -1 -1 -------- Run | Jun Mat Min Exi Min Mat Fac Sto Rec Fac Upp Upp Zhi Pro Fac Upp Upp War Pro Res Res Acc Com Damage Taken 12962 | . 526 216 . 29 333 649 1153 96 2257 60 169 . . 1556 41 129 169 . 318 897 2022 2342 Core 1356 | . 156 63 . 13 44 100 133 21 273 . . . . 132 . . . . . 123 73 225 Absorbed by Shields 250 | . . . . . . . . 15 171 . . . . 29 . . 35 . . . . . Regen/Repaired (Parts) 3396 | . . . . . . . . 15 706 60 . . . 486 . . 169 . 243 218 737 762 Core Remaining (%) 76 | 100 . . . 7 92 . . 63 . . . . 72 . . . . 88 100 91 . . Volleys Fired 836 | . 49 16 . 4 39 52 31 16 138 10 7 13 . 107 9 . 35 6 24 51 146 83 Largest 4 | . 2 2 . 2 2 3 3 3 3 3 2 1 . 3 2 . 3 2 4 3 3 3 Hottest 300 | . 40 85 . 88 120 141 160 176 176 141 120 120 . 217 120 . 138 105 206 293 300 300 Shots Fired 1613 | . 98 32 . 8 70 136 78 41 309 18 11 13 . 196 12 . 41 10 67 110 199 164 Gun 1081 | . 98 32 . 8 65 126 65 30 228 13 8 . . 172 6 . 33 8 49 34 14 92 Cannon 484 | . . . . . 4 10 2 11 76 . 3 13 . 22 6 . . . 18 76 176 67 Launcher 48 | . . . . . 1 . 11 . 5 5 . . . 2 . . 8 2 . . 9 5 Special . | . . . . . . . . . . . . . . . . . . . . . . . Kinetic 791 | . 98 23 . 4 20 42 19 3 152 4 8 . . 20 3 . 19 8 54 85 169 60 Thermal 679 | . . 9 . 4 49 94 48 37 127 9 3 13 . 158 9 . 11 . 4 21 21 62 Explosive 17 | . . . . . 1 . 9 . . 5 . . . . . . . 2 . . . . Electromagnetic 114 | . . . . . . . 2 1 30 . . . . 18 . . 8 . . 4 9 42 Entropic 12 | . . . . . . . . . . . . . . . . . 3 . 9 . . . Robot Hit Streak 28 | . 15 14 . 5 18 14 16 12 21 18 6 19 . 14 9 . 4 1 4 18 20 28 Robot Miss Streak 12 | . 2 3 . 1 3 2 4 6 6 2 1 . . 4 1 . 2 5 12 3 2 6 Penetration Max 3 | . . . . . . . . . 3 . . . . . . . 1 . 1 1 1 2 Secondary Targets 8 | . 2 . . . . 1 2 . 2 . . . . . . . 1 . . . . . Max Gunslinging Chain 1 | . 1 . . . . 1 1 . 1 . . . . . . . 1 . . . . . Shots Hit Robots 985 | . 72 26 . 6 51 82 56 27 206 10 6 13 . 95 5 . 11 2 28 63 111 115 Core Hits 635 | . 36 11 . 3 30 36 53 28 159 22 5 8 . 50 4 . 7 6 12 27 77 61 Critical Kills 14 | . . . . . . 1 . . 8 . . . . 1 . . . . 2 . 2 . Critical Parts Destroyed 19 | . . . . . . . 1 . 15 . . . . . . . . . 1 1 1 . Critical Strikes 55 | . . . . . 2 6 6 . 27 . . . . 6 . . . . 3 1 4 . Burn 18 | . . . . . 2 5 5 . 1 . . . . 5 . . . . . . . . Meltdown 1 | . . . . . . . . . . . . . . 1 . . . . . . . . Destroy 32 | . . . . . . 1 1 . 23 . . . . . . . . . 3 1 3 . Blast 4 | . . . . . . . . . 3 . . . . . . . . . . . 1 . Melee Attacks 1 | . . . . . 1 . . . . . . . . . . . . . . . . . Impact . | . . . . . . . . . . . . . . . . . . . . . . . Slashing 1 | . . . . . 1 . . . . . . . . . . . . . . . . . Piercing . | . . . . . . . . . . . . . . . . . . . . . . . Sneak Attacks . | . . . . . . . . . . . . . . . . . . . . . . . Combat Hostiles . | . . . . . . . . . . . . . . . . . . . . . . . Follow-up Attacks . | . . . . . . . . . . . . . . . . . . . . . . . Damage Inflicted 38445 | . 563 284 . 85 1068 1756 2339 606 6325 833 294 456 . 3636 320 . 645 295 890 2530 9737 5783 Guns 16692 | . 563 284 . 85 945 1685 893 514 3450 216 226 . . 2894 98 . 473 56 654 719 174 2763 Cannons 16037 | . . . . . . 71 19 92 1521 . 68 456 . 225 222 . . . 236 1811 8580 2736 Explosions 5716 | . . . . . 123 . 1427 . 1354 617 . . . 517 . . 172 239 . . 983 284 Melee . | . . . . . . . . . . . . . . . . . . . . . . . Ramming . | . . . . . . . . . . . . . . . . . . . . . . . Kinetic 18835 | . 563 148 . 23 208 455 186 46 2265 23 226 . . 190 51 . 473 56 588 2131 8470 2733 Thermal 13138 | . . 136 . 62 737 1301 780 535 3191 193 68 456 . 2683 269 . . . 96 315 645 1671 Explosive 2475 | . . . . . 123 . 1197 . . 617 . . . 292 . . . 239 . . 7 . Electromagnetic 3791 | . . . . . . . 176 25 869 . . . . 471 . . 172 . . 84 615 1379 Impact . | . . . . . . . . . . . . . . . . . . . . . . . Slashing . | . . . . . . . . . . . . . . . . . . . . . . . Piercing . | . . . . . . . . . . . . . . . . . . . . . . . Entropic 206 | . . . . . . . . . . . . . . . . . . . 206 . . . Highest Corruption 11 | . . . . . . 4 10 10 11 5 1 1 1 2 1 1 1 . . 1 5 7 Average Corruption 4 | . . . . . . 3 9 8 5 2 1 1 1 1 1 1 1 . . 1 3 5 Corruption Purged 30 | . . . . . . . . 2 6 5 . . . 2 . . . . . 1 7 7 Corruption Blocked 32 | . . . . . . . . . . . . . . . . . 5 . . 17 10 . Effects 209 | . . . . . . 9 15 48 50 1 1 2 1 10 1 3 . . . 3 27 38 Message Errors 43 | . . . . . . 1 2 13 10 . 1 . 1 3 . . . . . 1 2 9 Matter Fused 39 | . . . . . . 3 3 7 6 . . . . 2 1 1 . . . 1 5 10 Heat Flow Errors 28 | . . . . . . 2 1 7 6 . . . . 1 . . . . . 1 3 7 Energy Discharges 27 | . . . . . . . 2 8 7 . . 1 . . . . . . . . 7 2 Parts Rejected 2 | . . . . . . . . . . . . . . . . . . . . . 1 1 Parts Fused 3 | . . . . . . 1 . . 1 . . . . 1 . . . . . . . . Data Loss (minor) 29 | . . . . . . 2 1 9 6 . . . . 1 . 2 . . . . 3 5 Data Loss (major) 16 | . . . . . . . 2 3 4 1 . . . 1 . . . . . . 3 2 Misfires 6 | . . . . . . . 1 . 4 . . . . 1 . . . . . . . . Alerts 5 | . . . . . . . 1 . 2 . . 1 . . . . . . . . . 1 Misdirections 1 | . . . . . . . . 1 . . . . . . . . . . . . . . Weapon Failures 10 | . . . . . . . 2 . 4 . . . . . . . . . . . 3 1 Overload Shots . | . . . . . . . . . . . . . . . . . . . . . . . Overflow Damage 1666 | . . . . . . . 31 . 274 102 . 26 . . . . 24 . 11 15 932 251 Projectiles 1246 | . . . . . . . . . 20 . . 26 . . . . . . 11 15 923 251 Explosions 420 | . . . . . . . 31 . 254 102 . . . . . . 24 . . . 9 . Melee . | . . . . . . . . . . . . . . . . . . . . . . . Knockbacks 80 | . . . . . . . 3 . 16 . . . . 5 . . . . . 8 33 15 Impact . | . . . . . . . . . . . . . . . . . . . . . . . Kinetic 75 | . . . . . . . 2 . 15 . . . . 5 . . . . . 8 30 15 Secondary 5 | . . . . . . . 1 . 1 . . . . . . . . . . . 3 . Self-Inflicted Damage 345 | . . . . . . . 76 . 149 . . . . 104 . . 8 . . . . 8 Shots 10 | . . . . . . . 4 . 2 . . . . 2 . . 1 . . . . 1 Rammed . | . . . . . . . . . . . . . . . . . . . . . . . Targets Rammed . | . . . . . . . . . . . . . . . . . . . . . . . Kicked . | . . . . . . . . . . . . . . . . . . . . . . . Crushed . | . . . . . . . . . . . . . . . . . . . . . . . Highest Temperature 294 | . 18 218 . 110 108 169 158 256 280 . . . . 136 . . . . 54 186 235 294 Average Temperature 66 | . 8 78 . 50 25 50 30 94 50 . . . . 70 . . . . 27 67 77 97 Received Heat Transfer 1832 | . 174 129 . 18 99 75 321 15 290 . 9 . . 276 . 9 21 . . . 144 252 Siege Activations . | . . . . . . . . . . . . . . . . . . . . . . . Robots Corrupted 7 | . . . . . . . . . 1 . . . . . . . . . . . 2 4 Combat Hostiles 7 | . . . . . . . . . 1 . . . . . . . . . . . 2 4 Parts Fried 23 | . . . . . . . 1 . 5 . . . . . . . . . . 2 5 10 Impact Corruptions . | . . . . . . . . . . . . . . . . . . . . . . . Robots Melted 6 | . . . . . . . . . 2 . . . . 4 . . . . . . . . Combat Hostiles 6 | . . . . . . . . . 2 . . . . 4 . . . . . . . . Parts Melted 40 | . . . . . 5 9 2 . 9 . . 1 . 12 . . . . . 1 . 1 Heat Transferred 19977 | . . 296 . 148 1517 2639 1587 845 4355 211 160 860 . 3777 554 . . . 197 499 612 1720 Parts Sabotaged . | . . . . . . . . . . . . . . . . . . . . . . . Parts Stolen . | . . . . . . . . . . . . . . . . . . . . . . . Parts Stripped . | . . . . . . . . . . . . . . . . . . . . . . . Power Chain Reactions 7 | . . . . . . . 1 . 2 . . . . . . . 3 . . . 1 . Missiles Intercepted . | . . . . . . . . . . . . . . . . . . . . . . . Alert | -11 -10 -10 -10 -9 -8 -7 -7 -7 -5 -5 -5 -5 -4 -4 -4 -4 -4 -3 -3 -2 -1 -1 ------- Run | Jun Mat Min Exi Min Mat Fac Sto Rec Fac Upp Upp Zhi Pro Fac Upp Upp War Pro Res Res Acc Com Peak Influence 1539 | . 212 91 . 65 175 358 683 269 873 . . . . 596 . . . . 391 326 1406 1539 Initial 869 | . . 16 . . 25 70 124 193 54 . . . . . . . . . 204 103 195 869 Average 299 | . 92 40 . 54 56 92 489 105 390 . . . . 318 . . . . 322 69 544 1255 Maximum Alert Level 4 | . 1 . . . . 1 2 1 3 . . . . 2 . . . . 1 1 4 4 Low Security (%) 54 | 100 91 100 . 100 100 78 12 82 30 . . . . 30 . . . . . 86 3 . Level 1 21 | . 8 . . . . 21 7 17 29 . . . . 25 . . . . 99 13 48 . Level 2 12 | . . . . . . . 80 . 19 . . . . 44 . . . . . . 22 . Level 3 5 | . . . . . . . . . 19 . . . . . . . . . . . 10 22 Level 4 7 | . . . . . . . . . . . . . . . . . . . . . 13 77 Level 5 . | . . . . . . . . . . . . . . . . . . . . . . . High Security . | . . . . . . . . . . . . . . . . . . . . . . . Max Security . | . . . . . . . . . . . . . . . . . . . . . . . Squads Dispatched 70 | . 2 . . . 1 5 8 . 10 . . . . 16 . 1 . . 2 2 14 9 Investigation 8 | . . . . . . 2 . . 2 . . . . 2 . . . . . . 2 . Extermination 21 | . . . . . . 2 . . 4 . . . . 4 . . . . 1 . 6 4 Reinforcement 24 | . 2 . . . . 1 3 . 4 . . . . 6 . . . . 1 2 4 1 Assault 9 | . . . . . . . 2 . . . . . . . . 1 . . . . 2 4 Garrison 8 | . . . . . 1 . 3 . . . . . . 4 . . . . . . . . Intercept . | . . . . . . . . . . . . . . . . . . . . . . . Searches Triggered . | . . . . . . . . . . . . . . . . . . . . . . . Construction Impeded 8 | . . . . . . . 1 . 4 . . . . 1 . . . . . . 2 . Haulers Reinforced 3 | . . . . . . . 1 . . . . . . 1 . . . . . . 1 . Active Scanning Responses . | . . . . . . . . . . . . . . . . . . . . . . . Cargo Convoy Interrupts . | . . . . . . . . . . . . . . . . . . . . . . . Stealth | -11 -10 -10 -10 -9 -8 -7 -7 -7 -5 -5 -5 -5 -4 -4 -4 -4 -4 -3 -3 -2 -1 -1 --------- Run | Jun Mat Min Exi Min Mat Fac Sto Rec Fac Upp Upp Zhi Pro Fac Upp Upp War Pro Res Res Acc Com Distress Signals 28 | . 1 . . . 2 1 2 . 4 . . . . 1 . . . . 2 9 4 2 Communications Jammed 13 | . . . . . . . . . . . . . . . . . 10 1 2 . . . Distress Signals 10 | . . . . . . . . . . . . . . . . . 10 . . . . . Times Spotted 399 | . 20 5 . 2 15 25 23 4 55 5 3 . . 33 2 9 44 4 6 34 58 52 Peak Tracking Total 13 | . 4 2 . 2 6 7 8 1 7 5 3 . . 5 2 10 13 3 3 6 6 5 Tactical Retreats 37 | . . 1 . 1 1 1 . . 5 . . . . 6 1 4 1 . 1 6 4 5 Traps | -11 -10 -10 -10 -9 -8 -7 -7 -7 -5 -5 -5 -5 -4 -4 -4 -4 -4 -3 -3 -2 -1 -1 ------- Run | Jun Mat Min Exi Min Mat Fac Sto Rec Fac Upp Upp Zhi Pro Fac Upp Upp War Pro Res Res Acc Com Traps Triggered 14 | . . . . . . 1 2 . 4 . . . . 2 . . 1 . 1 . 3 . Indirectly 7 | . . . . . . . . . 3 . . . . . . . 1 . . . 3 . Trap Hack Attempts . | . . . . . . . . . . . . . . . . . . . . . . . Triggered . | . . . . . . . . . . . . . . . . . . . . . . . Disarmed . | . . . . . . . . . . . . . . . . . . . . . . . Reprogrammed . | . . . . . . . . . . . . . . . . . . . . . . . Reused . | . . . . . . . . . . . . . . . . . . . . . . . Traps Extracted . | . . . . . . . . . . . . . . . . . . . . . . . Installed . | . . . . . . . . . . . . . . . . . . . . . . . Triggered 19 | . . . . . . . . . . . . . . . . . 15 . . . 2 2 Machines | -11 -10 -10 -10 -9 -8 -7 -7 -7 -5 -5 -5 -5 -4 -4 -4 -4 -4 -3 -3 -2 -1 -1 ---------- Run | Jun Mat Min Exi Min Mat Fac Sto Rec Fac Upp Upp Zhi Pro Fac Upp Upp War Pro Res Res Acc Com Machines Disabled 36 | . . . . . 1 . 4 . 5 1 . . . 5 . . 2 . 4 . 11 3 Max in Single Turn 3 | . . . . . 1 . 2 . 2 1 . . . 3 . . 1 . 1 . 1 1 Garrison Access 5 | . . . . . . . . . . . . . . 1 . . . . 1 3 . . Machines Repaired . | . . . . . . . . . . . . . . . . . . . . . . . Machines Sabotaged . | . . . . . . . . . . . . . . . . . . . . . . . Overloaded Fab Kills . | . . . . . . . . . . . . . . . . . . . . . . . Hacking | -11 -10 -10 -10 -9 -8 -7 -7 -7 -5 -5 -5 -5 -4 -4 -4 -4 -4 -3 -3 -2 -1 -1 --------- Run | Jun Mat Min Exi Min Mat Fac Sto Rec Fac Upp Upp Zhi Pro Fac Upp Upp War Pro Res Res Acc Com Machines Accessed 83 | . 6 1 2 . 7 7 5 11 8 . . 4 . 11 1 . 2 . 2 3 12 1 Terminals 51 | . 6 1 . . 6 3 4 5 5 . . . . 7 . . . . 1 2 10 1 Fabricators 3 | . . . . . . 1 . . 1 . . . . 1 . . . . . . . . Repair Stations 1 | . . . . . . . . . 1 . . . . . . . . . . . . . Recycling Units 8 | . . . . . . 1 . 6 1 . . . . . . . . . . . . . Scanalyzers 1 | . . . . . . 1 . . . . . . . . . . . . . . . . Garrison Access 10 | . . . . . 1 1 1 . . . . . . 3 . . . . 1 1 2 . Total Hacks 197 | . 26 2 2 . 31 16 9 21 16 . . 17 . 22 1 . 6 . 3 4 20 1 Successful 82 | . 10 2 2 . 13 5 3 6 4 . . 17 . 3 1 . 6 . 1 1 8 . Failed 115 | . 16 . . . 18 11 6 15 12 . . . . 19 . . . . 2 3 12 1 Catastrophic 35 | . 3 . . . 3 3 1 6 3 . . . . 7 . . . . 1 2 6 . Database Lockouts . | . . . . . . . . . . . . . . . . . . . . . . . Manual 108 | . 22 2 1 . 19 5 10 10 7 . . . . 15 . . 1 . 2 3 10 1 Terminals 131 | . 26 2 . . 26 7 8 9 13 . . . . 16 . . . . 2 3 18 1 Fabricators 6 | . . . . . . 3 . . 1 . . . . 2 . . . . . . . . Repair Stations 1 | . . . . . . . . . 1 . . . . . . . . . . . . . Recycling Units 16 | . . . . . . 3 . 12 1 . . . . . . . . . . . . . Scanalyzers 1 | . . . . . . 1 . . . . . . . . . . . . . . . . Garrison Access 16 | . . . . . 5 2 1 . . . . . . 4 . . . . 1 1 2 . Terminal Hacks 57 | . 9 2 2 . 9 1 1 2 2 . . 17 . . 1 . 6 . . . 5 . Record 6 | . . . 1 . . . . . . . . 5 . . . . . . . . . . Part Schematic 4 | . . . . . . . . . . . . 4 . . . . . . . . . . Robot Analysis 9 | . 2 . . . 3 . . . . . . 4 . . . . . . . . . . Prototype ID Bank 9 | . . . . . . . . . . . . 4 . . . . 5 . . . . . Open Door 5 | . . . . . . . . . . . . . . . 1 . 1 . . . 3 . Branch Access Points 4 | . . . . . 1 1 . . 1 . . . . . . . . . . . 1 . Alert Level 2 | . . . . . . . 1 . 1 . . . . . . . . . . . . . Unreport Threat 4 | . 1 1 . . . . . 1 . . . . . . . . . . . . 1 . Locate Traps 6 | . 4 . . . 2 . . . . . . . . . . . . . . . . . Zone Layout 7 | . 2 1 . . 3 . . 1 . . . . . . . . . . . . . . EX-Prototype ID Bank 1 | . . . 1 . . . . . . . . . . . . . . . . . . . Fabricator Hacks 2 | . . . . . . 1 . . . . . . . 1 . . . . . . . . Network Status 2 | . . . . . . 1 . . . . . . . 1 . . . . . . . . Repair Station Hacks . | . . . . . . . . . . . . . . . . . . . . . . . Recycling Unit Hacks 5 | . . . . . . 1 . 3 1 . . . . . . . . . . . . . Retrieve Components 5 | . . . . . . 1 . 3 1 . . . . . . . . . . . . . Scanalyzer 1 | . . . . . . 1 . . . . . . . . . . . . . . . . Insert Component 1 | . . . . . . 1 . . . . . . . . . . . . . . . . Garrison Access Hacks 3 | . . . . . . . . . . . . . . 1 . . . . 1 1 . . Seal Access 3 | . . . . . . . . . . . . . . 1 . . . . 1 1 . . Unauthorized Hacks 14 | . 1 . . . 4 1 2 1 1 . . . . 1 . . . . . . 3 . Terminals 14 | . 1 . . . 4 1 2 1 1 . . . . 1 . . . . . . 3 . Botnet 13 | . 1 . . . 3 1 2 1 1 . . . . 1 . . . . . . 3 . Disrupt 1 | . . . . . 1 . . . . . . . . . . . . . . . . . Fabricators . | . . . . . . . . . . . . . . . . . . . . . . . Repair Stations . | . . . . . . . . . . . . . . . . . . . . . . . Recycling Units . | . . . . . . . . . . . . . . . . . . . . . . . Scanalyzers . | . . . . . . . . . . . . . . . . . . . . . . . Garrison Access . | . . . . . . . . . . . . . . . . . . . . . . . Data Cores Recovered . | . . . . . . . . . . . . . . . . . . . . . . . Used . | . . . . . . . . . . . . . . . . . . . . . . . Hacking Detections 67 | . 5 . . . 7 7 6 11 7 . . . . 10 . . . . 1 2 10 1 Full Trace Events 10 | . . . . . 1 2 . 1 2 . . . . 2 . . . . . . 2 . Feedback Events 1 | . . . . . . . . . 1 . . . . . . . . . . . . . Corruption 1 | . . . . . . . . . 1 . . . . . . . . . . . . . Feedback Blocked . | . . . . . . . . . . . . . . . . . . . . . . . Robot Schematics Acquired . | . . . . . . . . . . . . . . . . . . . . . . . Robots Built . | . . . . . . . . . . . . . . . . . . . . . . . Authchips . | . . . . . . . . . . . . . . . . . . . . . . . Time . | . . . . . . . . . . . . . . . . . . . . . . . Total Robot Build Rating . | . . . . . . . . . . . . . . . . . . . . . . . Part Schematics Acquired 4 | . . . . . . . . . . . . 4 . . . . . . . . . . Parts Built . | . . . . . . . . . . . . . . . . . . . . . . . Authchips . | . . . . . . . . . . . . . . . . . . . . . . . Time . | . . . . . . . . . . . . . . . . . . . . . . . Total Part Build Rating . | . . . . . . . . . . . . . . . . . . . . . . . Parts Repaired . | . . . . . . . . . . . . . . . . . . . . . . . Time . | . . . . . . . . . . . . . . . . . . . . . . . Parts Recycled . | . . . . . . . . . . . . . . . . . . . . . . . Recycled Matter . | . . . . . . . . . . . . . . . . . . . . . . . Retrieved Matter . | . . . . . . . . . . . . . . . . . . . . . . . Retrieved Components 12 | . . . . . . . . 10 2 . . . . . . . . . . . . . Parts Scanalyzed . | . . . . . . . . . . . . . . . . . . . . . . . Part Schematics Acquired . | . . . . . . . . . . . . . . . . . . . . . . . Parts Damaged . | . . . . . . . . . . . . . . . . . . . . . . . Bothacking | -11 -10 -10 -10 -9 -8 -7 -7 -7 -5 -5 -5 -5 -4 -4 -4 -4 -4 -3 -3 -2 -1 -1 ------------ Run | Jun Mat Min Exi Min Mat Fac Sto Rec Fac Upp Upp Zhi Pro Fac Upp Upp War Pro Res Res Acc Com Used RIF Installer . | . . . . . . . . . . . . . . . . . . . . . . . Robots Hacked . | . . . . . . . . . . . . . . . . . . . . . . . Non-combat . | . . . . . . . . . . . . . . . . . . . . . . . Combat . | . . . . . . . . . . . . . . . . . . . . . . . Robot Hacks Applied . | . . . . . . . . . . . . . . . . . . . . . . . Relay Couplers Released 16 | . . . . . . . . . 3 . . . . . . . . . . 10 3 . Machine Destruction 3 | . . . . . . . . . . . . . . . . . . . . 3 . . Programmers 13 | . . . . . . . . . 3 . . . . . . . . . . 7 3 . Fabnet Peak Effective % . | . . . . . . . . . . . . . . . . . . . . . . . Robots Rewired 17 | . . . . . . . . 12 . . . . . . . . 5 . . . . . Allies Hacked . | . . . . . . . . . . . . . . . . . . . . . . . Hacks Repelled . | . . . . . . . . . . . . . . . . . . . . . . . Allies | -11 -10 -10 -10 -9 -8 -7 -7 -7 -5 -5 -5 -5 -4 -4 -4 -4 -4 -3 -3 -2 -1 -1 -------- Run | Jun Mat Min Exi Min Mat Fac Sto Rec Fac Upp Upp Zhi Pro Fac Upp Upp War Pro Res Res Acc Com Total Allies 19 | . . . . . . . 2 12 . . . . . . . . 5 . . . . . Largest Group 12 | . . . . . . . 2 12 12 . . . . . . . 5 . . . . . Highest-Rated Group 358 | . . . . . . . 62 358 358 . . . . . . . 276 . . . . . Highest-Rated Ally 65 | . . . . . . . 31 40 40 . . . . . . . 65 . . . . . Total Orders 3 | . . . . . . . . . . . . . . . . . 2 . 1 . . . STAY 1 | . . . . . . . . . . . . . . . . . 1 . . . . . FOLLOW 1 | . . . . . . . . . . . . . . . . . 1 . . . . . EXPLORE 1 | . . . . . . . . . . . . . . . . . . . 1 . . . Ally Attacks 65 | . . . . . . . 3 24 16 . . . . . . . 22 . . . . . Total Damage 2688 | . . . . . . . 42 835 926 . . . . . . . 885 . . . . . Kills 21 | . . . . . . . . 5 11 . . . . . . . 5 . . . . . Allies Corrupted . | . . . . . . . . . . . . . . . . . . . . . . . Allies Melted 11 | . . . . . . . . . . . . . . . . . 1 . . 10 . . Intel | -11 -10 -10 -10 -9 -8 -7 -7 -7 -5 -5 -5 -5 -4 -4 -4 -4 -4 -3 -3 -2 -1 -1 ------- Run | Jun Mat Min Exi Min Mat Fac Sto Rec Fac Upp Upp Zhi Pro Fac Upp Upp War Pro Res Res Acc Com Robot Analysis Total 9 | . 2 . . . 3 . . . . . . 4 . . . . . . . . . . Derelict Logs Recovered 3 | . . . . 1 . . . . . 1 . . 1 . . . . . . . . . Drone Launches 6 | . . . . . . . . . . . . . . . . . . . 6 . . . Drone Recoveries . | . . . . . . . . . . . . . . . . . . . . . . . Exploration | -11 -10 -10 -10 -9 -8 -7 -7 -7 -5 -5 -5 -5 -4 -4 -4 -4 -4 -3 -3 -2 -1 -1 ------------- Run | Jun Mat Min Exi Min Mat Fac Sto Rec Fac Upp Upp Zhi Pro Fac Upp Upp War Pro Res Res Acc Com Turns Passed 22094 | 63 1111 435 281 208 1517 1724 440 1260 2071 205 187 180 322 2248 410 543 1142 146 401 3455 2439 1306 Spaces Moved 16048 | 37 620 282 216 127 766 1085 217 576 1260 283 332 171 274 2285 667 220 1147 321 518 2375 1758 511 Core 16 | 16 . . . . . . . . . . . . . . . . . . . . . . Treads 1385 | 21 286 . . . 3 . . . 25 . . . . 223 667 15 . . . . 145 . Legs 4011 | . . . . . . . . . 503 283 332 171 274 62 . . 609 . . 955 772 50 Wheels 4284 | . 334 282 216 127 763 1085 217 576 211 . . . . . . . . . . . 473 . Hover 4848 | . . . . . . . . . 272 . . . . 1831 . 205 171 . 331 1420 368 250 Flight 1504 | . . . . . . . . . 249 . . . . 169 . . 367 321 187 . . 211 Fastest Speed 34 | 50 130 130 130 130 115 130 130 115 47 47 47 47 115 34 34 34 34 34 34 34 73 116 Average Speed 86 | 142 143 130 130 144 130 130 130 148 122 47 47 79 115 54 34 77 56 34 34 56 89 165 Slowest Speed 330 | 200 160 130 130 145 330 130 130 160 219 47 47 115 115 137 34 164 67 34 34 160 218 218 Overloaded Moves . | . . . . . . . . . . . . . . . . . . . . . . . Propulsion Burnouts . | . . . . . . . . . . . . . . . . . . . . . . . Robots Hopped 20 | . . . . . . . . . . . . . . 2 . . 3 . . . . 15 Cave-ins Triggered . | . . . . . . . . . . . . . . . . . . . . . . . Exploration Rate (%) 51 | 4 84 63 60 43 52 31 39 97 31 61 58 60 56 43 76 47 93 59 18 41 48 17 Regions Visited 22 Branch Regions 14 Pre-discovered Areas 6 | . . . 1 . . . . . . 1 . 3 1 . . . . . . . . . Known Exits Taken 5 | . . . . . 1 1 . . 1 . . . . . . . . . . 1 1 . Unknown Exits Taken 17 | 1 1 1 1 1 . . 1 1 . 1 1 1 1 1 1 1 1 1 1 . . . Scrap Searched 16 | . . 1 . 1 . . . . . 2 4 . 3 . 3 2 . . . . . . Spaces Dug 117 | . . . . . 4 6 . . 10 . . . . 28 . . 4 . 1 15 42 7 Terrain Destroyed 625 | . . . . . 15 8 67 6 60 42 9 . . 83 1 . 23 50 18 42 162 39 Melee 1 | . . . . . 1 . . . . . . . . . . . . . . . . . Projectile 348 | . . . . . 4 8 . 6 23 8 9 . . 54 1 . 11 13 18 42 112 39 AOE 276 | . . . . . 10 . 67 . 37 34 . . . 29 . . 12 37 . . 50 . Terrain Rammed . | . . . . . . . . . . . . . . . . . . . . . . . Walls Destroyed . | . . . . . . . . . . . . . . . . . . . . . . . Machines Disabled . | . . . . . . . . . . . . . . . . . . . . . . . Actions | -11 -10 -10 -10 -9 -8 -7 -7 -7 -5 -5 -5 -5 -4 -4 -4 -4 -4 -3 -3 -2 -1 -1 --------- Run | Jun Mat Min Exi Min Mat Fac Sto Rec Fac Upp Upp Zhi Pro Fac Upp Upp War Pro Res Res Acc Com Total 22882 | 45 760 323 216 151 1239 1318 319 957 1558 338 351 201 281 3102 839 591 1596 346 695 4402 2417 837 Wait 5320 | . 67 20 . 7 353 137 30 193 104 36 8 2 4 675 161 370 341 19 117 1945 496 235 Move 15990 | 36 619 281 215 126 765 1084 216 575 1259 282 331 170 273 2280 666 219 1141 320 517 2374 1757 484 Hop 16 | . . . . . . . . . . . . . . 2 . . 2 . . . . 12 Pick Up 121 | 3 15 3 1 5 23 10 6 7 14 . 3 3 . 5 1 . 5 . 5 4 1 7 Fast Attach 82 | 6 1 . . . 11 2 6 2 7 2 . 6 2 7 . . 6 . 11 8 2 3 Attach 37 | . 1 3 . . 2 2 2 2 7 2 2 . . 2 . . . . . 3 5 4 Detach 9 | . . . . . . . 1 1 3 . . . . 1 . . . . . . 2 1 Swap 97 | . 5 . . 2 10 13 13 2 9 3 . 1 . 13 1 2 2 1 4 5 6 5 Drop 176 | . 3 . . 7 35 18 14 17 17 3 . 6 2 8 1 . 11 . 17 12 2 3 Fire 836 | . 49 16 . 4 39 52 31 16 138 10 7 13 . 107 9 . 35 6 24 51 146 83 Melee 1 | . . . . . 1 . . . . . . . . . . . . . . . . . Ram . | . . . . . . . . . . . . . . . . . . . . . . . Kick . | . . . . . . . . . . . . . . . . . . . . . . . Crush . | . . . . . . . . . . . . . . . . . . . . . . . Escape Stasis 2 | . . . . . . . . . . . . . . 2 . . . . . . . . Rewire 195 | . . . . . . . . 142 . . . . . . . . 53 . . . . . Trap . | . . . . . . . . . . . . . . . . . . . . . . . Miscellaneous . | . . . . . . . . . . . . . . . . . . . . . . . Route ------- -11/Junkyard -10/Materials (discovered 5 exits: [*Mat x3] / *Min x2) -10/Mines (discovered 3 exits: [*Mat x2] / *Exi) -10/Exiles -9/Mines -8/Materials -7/Factory (discovered 3 exits: *Sto / Low x2) -7/Storage -7/Recycling -5/Factory (discovered 2 exits: *Upp x2) -5/Upper Caves -5/Upper Caves -5/Zhirov -4/Proximity Caves -4/Factory (discovered 4 exits: *Res x2 / *Upp / [*Ext]) -4/Upper Caves -4/Upper Caves -4/Warlord -3/Proximity Caves -3/Research -2/Research (discovered 3 exits: *Acc / [*Qua x2]) -1/Access -1/Command History --------- Turn | Location | Event 42 | -11/Junkyard | Discovered new exit (range 14) 64 | -11/Junkyard | Entered Materials 176 | -10/Materials | Discovered new exit (range 10) 305 | -10/Materials | Build established: Mutant 537 | -10/Materials | Discovered new exit (range 9) 556 | -10/Materials | Core integrity fell below 50% 667 | -10/Materials | Discovered new exit (range 6) 915 | -10/Materials | Discovered new exit (range 5) 981 | -10/Materials | Discovered new exit (range 16) 1175 | -10/Materials | Entered Mines 1237 | -10/Mines | Discovered new exit (range 10) 1284 | -10/Mines | Core integrity fell below 20% 1315 | -10/Mines | Discovered new exit (range 11) 1571 | -10/Mines | Assembled infested the area 1605 | -10/Mines | Deemed a non-threat by the Exiles lab entrance 1605 | -10/Mines | Discovered new exit (range 5) 1610 | -10/Mines | Entered Exiles 1643 | -10/Exiles | Met 8R-AWN 1665 | -10/Exiles | Met EX-HEX 1700 | -10/Exiles | Met EX-BIN 1718 | -10/Exiles | Aligned with FarCom system 1720 | -10/Exiles | Given EX-Vault access code 1752 | -10/Exiles | Opened EX-Vault 1761 | -10/Exiles | Found Gui. Plasma Cannon 1790 | -10/Exiles | Warned to stay clear of 0b10 Research branches 1831 | -10/Exiles | Met EX-DEC 1839 | -10/Exiles | Learned location of Zion (-6) 1875 | -10/Exiles | Discovered new exit (range 14) 1891 | -10/Exiles | Left Exiles lab with Gui. Plasma Cannon 1891 | -10/Exiles | Entered Mines 1907 | -9/Mines | Met a Derelict bent on vengeance 2020 | -9/Mines | Learned location of 1 exit from Materials 2034 | -9/Mines | Discovered new exit (range 15) 2099 | -9/Mines | Entered Materials 2099 | -8/Materials | Evolved 4 slots: Propulsion x1, Utility x3 2100 | -8/Materials | Identified exit to Factory 2283 | -8/Materials | Garrison activated, responded to threat 3616 | -8/Materials | Entered Factory 3616 | -7/Factory | Evolved 2 slots: Utility x1, Weapon x1 3914 | -7/Factory | Build established: Skirmisher 4177 | -7/Factory | Identified exit to Storage 4177 | -7/Factory | Identified exit to Lower Caves 5340 | -7/Factory | Entered Storage 5394 | -7/Storage | Garrison activated, responded to threat 5399 | -7/Storage | System corruption reached 10% 5446 | -7/Storage | Destroyed 11 combat bots 5494 | -7/Storage | Met a pair of Derelict thieves 5506 | -7/Storage | Found Prototype Launcher 5506 | -7/Storage | Identified Rocket Array 5775 | -7/Storage | Used back door to open Recycling access 5775 | -7/Storage | Discovered new exit (range 5) 5780 | -7/Storage | Entered Recycling 5781 | -7/Recycling | Found Scrap Engine 6203 | -7/Recycling | Build established: Construct 6559 | -7/Recycling | Build established: Commander-Construct 7010 | -7/Recycling | Discovered new exit (range 16) 7040 | -7/Recycling | Entered Factory 7040 | -5/Factory | Accompanied by 12 allies 7040 | -5/Factory | Evolved 4 slots: Power x1, Propulsion x1, Utility x2 7451 | -5/Factory | Build established: Construct 7869 | -5/Factory | P-70 Sage assimilated allied Angel 4c 8190 | -5/Factory | Identified exit to Upper Caves 8557 | -5/Factory | Destroyed 7 combat bots 8674 | -5/Factory | System corruption reached 10% 9111 | -5/Factory | Entered Upper Caves 9154 | -5/Upper Caves | Learned location of Warlord (-4) 9310 | -5/Upper Caves | Discovered new exit (range 10) 9316 | -5/Upper Caves | Entered another Upper Caves area 9377 | -5/Upper Caves | Attracted the attention of an 0b10 checkpoint 9421 | -5/Upper Caves | Encountered a Warlord checkpoint 9488 | -5/Upper Caves | Discovered new exit (range 18) 9503 | -5/Upper Caves | Entered Zhirov 9503 | -5/Zhirov | Discovered new exit (range 3) 9522 | -5/Zhirov | Learned location of Quarantine (-2) 9522 | -5/Zhirov | Learned location of Testing (-3) 9522 | -5/Zhirov | Learned location of Command (-1) 9532 | -5/Zhirov | Found Alien Artifact 9532 | -5/Zhirov | Identified Integrated Dissipator 9532 | -5/Zhirov | Installed Integrated Dissipator, increased core heat dissipation (+20) 9541 | -5/Zhirov | Found Alien Artifact 9683 | -5/Zhirov | Entered Proximity Caves 9940 | -4/Proximity Caves | Discovered new exit (range 10) 10005 | -4/Proximity Caves | Entered Factory 10005 | -4/Factory | Evolved 2 slots: Propulsion x1, Utility x1 10692 | -4/Factory | Garrison activated, responded to threat 11282 | -4/Factory | Lost 3 parts (1n1u1w) 11358 | -4/Factory | Discovered new exit (range 12) 11416 | -4/Factory | Discovered new exit (range 20) 11612 | -4/Factory | Discovered new exit (range 14) 12183 | -4/Factory | Discovered new exit (range 22) 12183 | -4/Factory | Spotted B-86 Titan 12253 | -4/Factory | Entered Upper Caves 12368 | -4/Upper Caves | Spotted B-86 Titan 12403 | -4/Upper Caves | Attracted the attention of an 0b10 checkpoint 12656 | -4/Upper Caves | Discovered new exit (range 8) 12661 | -4/Upper Caves | Encountered a Warlord checkpoint 12663 | -4/Upper Caves | Entered another Upper Caves area 12979 | -4/Upper Caves | Attracted the attention of an 0b10 outpost 13092 | -4/Upper Caves | Discovered new exit (range 21) 13206 | -4/Upper Caves | Entered Warlord 13229 | -4/Warlord | System corruption cleaned by Quarantine Array 13483 | -4/Warlord | Met Warlord 13508 | -4/Warlord | Warlord's base attacked by MAIN.C 13618 | -4/Warlord | Build established: Commander-Construct 13676 | -4/Warlord | Found Prototype Energy Gun 13676 | -4/Warlord | Identified Vortex Rifle 13778 | -4/Warlord | Found Prototype Device 13778 | -4/Warlord | Identified System Purifier 13796 | -4/Warlord | Found Prototype Processor 13858 | -4/Warlord | Warlord forces counterattacked 13870 | -4/Warlord | Spotted Executioner 13886 | -4/Warlord | Spotted Striker 13908 | -4/Warlord | Spotted Striker 13964 | -4/Warlord | Build established: Construct 14013 | -4/Warlord | Discovered new exit (range 18) 14013 | -4/Warlord | Spotted Executioner 14019 | -4/Warlord | Spotted Striker 14183 | -4/Warlord | Warlord base infiltrated, sounded retreat 14217 | -4/Warlord | Spotted Striker 14223 | -4/Warlord | Spotted Executioner 14238 | -4/Warlord | Spotted B-90 Cyclops 14239 | -4/Warlord | Spotted Executioner 14247 | -4/Warlord | Spotted Executioner 14264 | -4/Warlord | Spotted Executioner 14309 | -4/Warlord | Spotted Executioner 14348 | -4/Warlord | Entered Proximity Caves 14354 | -3/Proximity Caves | Spotter reported a threat 14484 | -3/Proximity Caves | Discovered new exit (range 14) 14494 | -3/Proximity Caves | Entered Research 14494 | -3/Research | Evolved 2 slots: Utility x1, Weapon x1 14506 | -3/Research | Found Prototype Protection 14506 | -3/Research | Identified Centrium Heavy Armor Plating 14508 | -3/Research | Found Centrium Heavy Armor Plating 14512 | -3/Research | Found Centrium Heavy Armor Plating 14561 | -3/Research | Found Prototype Device 14561 | -3/Research | Identified Adv. Kinecellerator 14675 | -3/Research | Identified Exp. Core Analyzer 14724 | -3/Research | Found Centrium Heavy Armor Plating 14732 | -3/Research | Found Centrium Heavy Armor Plating 14848 | -3/Research | Discovered new exit (range 15) 14895 | -3/Research | Entered another Research area 14895 | -2/Research | Warlord forces began assault on 0b10 14895 | -2/Research | Evolved 2 slots: Propulsion x1, Utility x1 15005 | -2/Research | Research machine network offline 15020 | -2/Research | Discovered new exit (range 20) 15020 | -2/Research | Spotted B-90 Cyclops 15023 | -2/Research | Discovered new exit (range 22) 15043 | -2/Research | Identified exit to Access 15153 | -2/Research | Spotted Striker 15170 | -2/Research | Met up with Warlord 15233 | -2/Research | Borebot progress halted 15243 | -2/Research | Borebot progress halted 15587 | -2/Research | Borebot progress halted 15671 | -2/Research | Found Prototype Processor 15671 | -2/Research | Identified Exp. Targeting Computer 15719 | -2/Research | Discovered new exit (range 4) 15726 | -2/Research | Found Prototype Device 15726 | -2/Research | Identified Exp. Actuator Array 15811 | -2/Research | Warlord destroyed during the assault 15889 | -2/Research | Spotted B-90 Cyclops 15942 | -2/Research | Spotted Striker 16775 | -2/Research | Spotted Executioner 16804 | -2/Research | Spotted Executioner 16815 | -2/Research | Destroyed Executioner 17651 | -2/Research | Spotted Striker 17654 | -2/Research | Spotted Striker 17659 | -2/Research | Destroyed Striker 17661 | -2/Research | Spotted Striker 17673 | -2/Research | Spotted Striker 17697 | -2/Research | Destroyed Striker 17724 | -2/Research | Spotted Striker 17726 | -2/Research | Spotted Striker 17771 | -2/Research | Spotted Striker 17868 | -2/Research | Spotted Striker 17878 | -2/Research | Destroyed Striker 17886 | -2/Research | Spotted Striker 17955 | -2/Research | Spotted Executioner 17983 | -2/Research | Spotted Executioner 17984 | -2/Research | Spotted Executioner 18003 | -2/Research | Spotted Executioner 18011 | -2/Research | Spotted Striker 18042 | -2/Research | Spotted Striker 18045 | -2/Research | Spotted Striker 18052 | -2/Research | Spotted Executioner 18057 | -2/Research | Spotted Executioner 18120 | -2/Research | Spotted Striker 18258 | -2/Research | Found Exp. Targeting Computer 18263 | -2/Research | Spotted Executioner 18270 | -2/Research | Spotted OS-SA4(L) 18283 | -2/Research | Destroyed Striker 18303 | -2/Research | Spotted Striker 18323 | -2/Research | Spotted Executioner 18326 | -2/Research | Spotted Striker 18346 | -2/Research | Spotted Striker 18347 | -2/Research | Spotted Executioner 18349 | -2/Research | Spotted Striker 18349 | -2/Research | Spotted Executioner 18350 | -2/Research | Entered Access 18350 | -1/Access | Evolved 2 slots: Utility x2 18409 | -1/Access | Spotted B-99 Colossus 18562 | -1/Access | Build established: Scavenger-Construct 20144 | -1/Access | First assault squad dispatched 20248 | -1/Access | Identified exit to Command 20789 | -1/Access | Entered Command 21071 | -1/Command | First assault squad dispatched 21900 | -1/Command | Spotted B-99 Colossus 22095 | -1/Command | Self-destructed Last Messages --------------- 21961_ System corrupted: Heat flow error (+175). 21966_ Acquired 30 matter. 21992_ Adv. Signal Interpreter fried. 21992_ W-44 Eye destroyed. 21994_ K-01 Serf collects debris. 22027_ System corrupted: Component data lost. 22033_ Scrap Engine modifies Flying ITA-Biometal Exoskeleton: Max Integrity +149 Renamed Myomer-ITA Exoskeleton. 22039_ ALERT: Rogue bot located, Programmers report to Command Zone 8F. 22054_ System Purifier purges 1% system corruption (2%). 22054_ System Purifier expended. 22072_ Acquired 10 matter. 22079_ Acquired Adv. Heat Sink. 22081_ ALERT: Significant disruption in Zone 2N, assault force dispatched. 22085_ System corrupted: Matter fused (-6). 22087_ Dropped Adv. Heat Sink. 22087_ Acquired Adv. Heat Sink. 22093_ Slug penetrates P-80 Master. 22093_ P-80 Master destroyed. Map ----- +----------------------------------------------------+ | ## ^ #???????????????# " #??? | | #???????????????# # #??? | | #???????????????#""######## #??? | | #???????????????# # ## +? | | #???????????????# #### ###?####? | | #???????????????# #??# #???????? | | ### #???????????????# #??# #???????? | | ??# #################;#### #???????? | | ??# !=%!=!% p p +???????? | | ??# #############+=######;#"## " #???????? | | ??"/#?????????# =!!= ## # """" #???????? | | ? # ?????????# ! ## # """" #???????? | | # ?????????# ! ## ! # "" #???????? | | ?# !!! #### ## *%! # ######### | | " !!! *" " ## =| !# | | " #### = # !=[ # | | # ???????# ####;#### """" | | ??+ ?????????# #??#%#### """" | | ??# ?????????# [[[ #??#*[ """" | | ??? [????????# [[[ #??# """" | | ???###??####### [[ #??# | | ????????# # #??#= | | ????????# =!###########! | | ????????# !!+% ![ |! %[%! | | ????????# [[=%##########/######### | | ?????#### =! #########! @ ##???# ###+### | | ?????# " !!%!"%% %/%! ;#???# ## ## | | ?????#### !!!#########* ##???########## # | | ????????#######???????#! #?????????????# * # | | ??????????????????????# #?????????????# # | | ??????????????????????# #?????????????# # | | ??????????????????????########?????????????# # | | ???????????????????????????????????????????# # | | ???????????????????????????????????????????# ## | | ???????????????????????????????????????????# #? | | ???????????????????????????????????????????######? | | ?????????????????????????????????????????????????? | | ?????????????????????????????????????????????????? | | ?????????????????????????????????????????????????? | | ?????????????????????????????????????????????????? | | ?????????????????????????????????????????????????? | | ?????????????????????????????????????????????????? | | ?????????????????????????????????????????????????? | | ?????????????????????????????????????????????????? | | ?????????????????????????????????????????????????? | | ?????????????????????????????????????????????????? | | ?????????????????????????????????????????????????? | | ?????????????????????????????????????????????????? | | ?????????????????????????????????????????????????? | | ?????????????????????????????????????????????????? | +----------------------------------------------------+ Best States ------------- Heat Dissipation 110 Coolant Potential 100 Energy Generation 69 Energy Capacity 785 Matter Stores 300 Matter Capacity 300 Sight Range 23 Terrain Scan Density 10 Jamming Range 16 Cloak Strength 2 Armor Coverage 600 Resistance: EM 25 Utility Shielding 90 Weapon Cycling 25 Phase Shifting 5 Evasion (%) 65 Targeting Accuracy 24 Core Analysis 8 Recoil Reduction 6 Energy Filtering 50 Kinecelleration 50 Item Schematics ----------------- Assault Drone Bay | -5/Zhirov | Free Exp. Heat Sink | -5/Zhirov | Free Exp. Optical Array | -5/Zhirov | Free Imp. Arc Thrower | -5/Zhirov | Free Robot Schematics ------------------ None Fabricated ------------ Nothing Alien Tech Used ----------------- Integrated Dissipator Achievements -------------- None Challenges ------------ None Game ------ Seed TractorXenonTriangulator Manual? 0 Play Time 02:43:01 Cumulative 1221.1 hours Start 2023.05.04 @ 14:35:59 End 2023.05.04 @ 21:15:24 Sessions 5 Manual Loads 0 Difficulty Rogue Special Mode None Game No. 885 Rogue 845 Adventurer 40 Explorer 0 Win Type - Total 143 Types 70/7/42/2/1/4/14/2/1 Lore% 95 Gallery% 96 Achievement% 82 Wizard Run 0 Options --------- ASCII 0 Keyboard 0 Movement Numpad Keybinds 0 Fullscreen 0 Font 20/Terminus Map View 76x50 Tactical HUD 1 Map Filters NONE Filters NONE Steam 1 RUN: 8afad38c-4c8c-4bb3-9d9d-3284821432f3